bitfinex-derivatives/quotes_ETHF0:USTF0_20240910
["timestamp","ask_amount","ask_price","bid_price","bid_amount"]
[1725932288269,2.20941066,2343.0,2342.8,0.34141]
[1725932288764,0.34137,2343.1,2342.8,0.34141]
[1725932288971,0.34137,2343.1,2342.7,0.34142]
[1725932289159,0.44035,2343.3,2342.4,0.7617]
[1725932289360,0.099,2343.5,2343.0,0.34138]
[1725932289558,0.72754999,2343.6,2342.5,0.3717]
[1725932289559,0.55415999,2343.6,2343.2,0.34135]
[1725932289963,0.55415999,2343.6,2343.3,40.8]
[1725932290259,0.34131,2343.6,2343.3,40.8]
[1725932290864,0.34132,2343.5,2343.3,40.8]
[1725932291475,0.21366134,2343.7,2343.3,41.14134]
[1725932291667,5.04184,2344.0,2343.3,41.14134]
[1725932291866,0.3413,2343.6,2343.3,41.14134]
[1725932292176,0.3413,2343.6,2343.3,40.8]
[1725932292571,0.3413,2343.6,2343.3,41.14133]
[1725932294478,0.55917887,2343.7,2343.3,41.14133]
[1725932294671,0.34129,2343.7,2343.3,41.14133]
[1725932294875,0.21453702,2343.8,2343.4,0.34133]
[1725932295074,5.19865619,2344.0,2343.4,0.34133]
[1725932295384,0.34129,2343.7,2343.4,0.34133]
[1725932295566,0.34129,2343.7,2343.3,41.14133]
[1725932295874,0.34129,2343.7,2343.4,0.34133]
[1725932296174,2.20941066,2343.9,2343.3,40.8]
[1725932296371,2.20941066,2343.9,2343.4,0.34132]
[1725932296567,0.34128,2343.8,2343.5,0.34131]
[1725932297266,2.55067066,2343.9,2343.5,0.34131]
[1725932297462,3.16398835,2344.1,2343.3,40.8]
[1725932297463,2.20941066,2344.1,2343.3,40.8]
[1725932297677,0.34123,2344.1,2343.8,0.34126]
[1725932297971,0.2184012,2344.2,2343.9,0.34125]
[1725932298183,0.5596212,2344.2,2343.9,0.34125]
[1725932298573,0.3412,2344.3,2343.4,0.85331]
[1725932298970,0.44019,2344.4,2343.5,4.54329]
[1725932299173,0.099,2344.4,2344.1,0.34123]
[1725932299364,2.20941066,2344.7,2343.8,0.85318]
[1725932299685,2.55055066,2344.8,2344.4,0.34118]
[1725932299980,0.34114,2344.7,2344.5,41.1801]
[1725932300275,0.34113,2344.8,2344.5,41.1801]
[1725932301072,0.34114,2344.8,2344.5,41.1801]
[1725932301375,2.55051066,2345.0,2344.6,0.34115]
[1725932301580,0.3411,2345.0,2344.5,41.1801]
[1725932301765,0.3411,2345.0,2344.6,0.34115]
[1725932301969,0.3411,2345.0,2344.6,0.72735]
[1725932302481,0.3411,2345.0,2344.6,0.3862]
[1725932303081,0.3411,2345.0,2344.6,0.72735]
[1725932303579,0.3411,2345.0,2344.6,0.3862]
[1725932303789,0.34111,2344.9,2344.6,0.3862]
[1725932304689,0.34111,2345.0,2344.6,0.3862]
[1725932304876,2.45844515,2345.1,2344.6,0.3862]
[1725932305073,0.3411,2345.0,2344.6,0.3862]
[1725932305277,0.34111,2344.9,2344.6,0.3862]
[1725932305480,2.45844515,2345.1,2344.6,0.72735]
[1725932305685,0.34112,2344.9,2344.6,0.3862]
[1725932306084,2.45844515,2345.1,2344.0,8.62511]
[1725932306085,0.34119,2344.4,2344.0,4.42323]
[1725932306272,0.34117,2344.6,2344.1,0.34121]
[1725932306476,5.99841066,2344.8,2344.1,0.34121]
[1725932306477,5.89941066,2344.8,2344.1,0.34121]
[1725932306673,0.34117,2344.5,2344.1,41.14121]
[1725932307385,0.34117,2344.5,2344.2,0.34121]
[1725932307577,0.34116,2344.6,2344.2,0.34121]
[1725932307777,0.34116,2344.6,2344.1,40.8]
[1725932307778,0.34115,2344.7,2344.3,0.34119]
[1725932308184,0.34115,2344.6,2344.3,0.34119]
[1725932308578,2.20941066,2344.9,2344.3,0.34119]
[1725932309087,0.34115,2344.7,2344.3,0.34119]
[1725932310577,0.34115,2344.7,2344.4,0.34118]
[1725932311188,2.20941066,2344.5,2343.0,1.67154255]
[1725932311381,3.0,2344.0,2343.3,0.381]
[1725932311576,3.0,2344.0,2343.5,0.3413]
[1725932311577,0.55468528,2343.9,2343.5,0.3413]
[1725932311782,0.55468528,2343.9,2343.4,0.34132]
[1725932311783,0.34128,2343.8,2343.4,0.34132]
[1725932311980,0.34128,2343.8,2343.5,0.34131]
[1725932312180,0.34128,2343.8,2343.4,0.34132]
[1725932312386,0.34126,2343.9,2343.5,0.3413]
[1725932312786,0.34126,2343.9,2342.1,4.082]
[1725932312787,5.21210302,2343.7,2342.1,4.082]
[1725932312988,0.34142,2342.9,2342.5,0.34145]
[1725932313286,0.34142,2342.9,2342.6,40.8]
[1725932315582,0.34142,2342.9,2342.6,41.14144]
[1725932318192,0.34139,2343.0,2342.6,41.14144]
[1725932320191,4.04356935,2343.3,2342.7,0.34142]
[1725932320393,0.34139,2343.0,2342.7,0.34142]
[1725932320893,0.34139,2343.0,2342.8,40.8]
[1725932321585,0.34138,2343.1,2342.8,40.8]
[1725932326308,0.34138,2343.1,2342.8,41.14141]
[1725932331207,0.34139,2343.0,2342.8,41.14141]
[1725932331706,0.34139,2343.0,2342.8,40.8]
[1725932332113,0.34139,2343.0,2342.8,41.14141]
[1725932332994,0.34139,2343.0,2342.8,40.8]
[1725932332995,3.69,2343.0,2342.8,40.8]
[1725932333197,4.0314,2343.0,2342.8,40.8]
[1725932333502,0.34133,2343.4,2343.1,0.34136]
[1725932333704,0.34133,2343.4,2343.2,0.3696]
[1725932334303,0.34134,2343.4,2343.2,0.3696]
[1725932335410,0.34134,2343.4,2343.2,0.71096]
[1725932335913,0.34134,2343.4,2343.2,0.3696]
[1725932336109,3.0,2343.3,2343.2,0.71095]
[1725932338697,3.0,2343.6,2343.2,4.6368]
[1725932338899,3.0,2343.6,2343.2,1.22297]
[1725932339108,7.272,2344.1,2343.2,4.6368]
[1725932339317,3.0,2343.7,2343.5,0.34131]
[1725932342112,3.0,2343.7,2343.6,0.3413]
[1725932342508,3.0,2343.7,2343.5,0.3413]
[1725932342813,3.0,2343.7,2343.2,0.3696]
[1725932343013,3.0,2343.7,2343.5,0.3413]
[1725932343226,3.0,2343.7,2343.6,0.3413]
[1725932343915,3.0,2343.7,2343.5,0.3413]
[1725932347002,3.0,2343.7,2343.2,0.3696]
[1725932347003,0.34132,2343.5,2343.2,0.3696]
[1725932347203,3.0,2343.4,2343.2,0.3696]
[1725932347419,3.0,2343.4,2342.9,0.7666]
[1725932347619,3.34134,2343.4,2343.0,0.74478]
[1725932348021,3.34134,2343.4,2343.1,0.34137]
[1725932351114,3.0,2343.4,2343.1,0.34136]
[1725932351323,3.0,2343.4,2343.0,0.4034]
[1725932351505,3.0,2343.4,2343.1,0.34137]
[1725932352109,0.65371804,2343.7,2343.3,0.34133]
[1725932352110,3.99500804,2343.7,2343.3,0.34133]
[1725932352412,0.3413,2343.6,2343.3,0.34133]
[1725932352812,3.74079,2343.7,2343.3,0.34133]
[1725932353218,2.71240302,2344.0,2343.1,3.0]
[1725932353219,3.0,2343.9,2343.1,3.0]
[1725932353413,3.34126,2343.9,2343.5,0.3413]
[1725932353617,3.34126,2343.9,2343.1,4.11059281]
[1725932353618,3.34126,2343.9,2343.6,0.3643]
[1725932354715,3.0,2343.9,2343.6,0.70559]
[1725932355815,5.21210302,2343.9,2343.6,0.70559]
[1725932356120,2.21210302,2343.8,2343.7,0.34128]
[1725932357514,5.21210302,2343.9,2343.7,0.34128]
[1725932357918,2.21210302,2343.8,2343.7,0.34128]
[1725932358619,3.0,2343.9,2343.7,0.34128]
[1725932358620,5.21210302,2343.9,2343.8,0.34127]
[1725932358814,2.21210302,2343.9,2343.8,0.34127]
[1725932359420,3.0,2344.0,2343.8,0.34127]
[1725932359421,5.21210302,2344.0,2343.8,0.34127]
[1725932361520,3.0,2344.0,2343.9,0.34126]
[1725932362414,3.0,2344.0,2343.8,0.34126]
[1725932363020,21.775,2343.2,2342.9,0.12892281]
[1725932363326,0.34142,2342.8,2342.2,0.34149]
[1725932363527,5.2156961,2342.7,2342.2,0.3415]
[1725932363725,5.5571361,2342.7,2342.2,0.3415]
[1725932363924,5.00286701,2342.7,2342.2,0.3415]
[1725932364125,5.00285701,2342.7,2342.2,0.3415]
[1725932365928,4.66142701,2342.7,2342.1,40.8]
[1725932366230,5.00285701,2342.7,2342.2,0.3415]
[1725932370329,5.00285701,2342.7,2342.2,0.7151]
[1725932370722,3.34143,2342.7,2342.2,0.7151]
[1725932370931,3.34146,2342.5,2342.2,0.3736]
[1725932371333,3.0,2342.3,2342.2,0.3736]
[1725932372031,3.0,2342.3,2342.1,40.8]
[1725932373943,3.0,2342.3,2342.1,41.14152]
[1725932374137,3.0,2342.3,2341.8,0.70915]
[1725932374334,3.0,2342.0,2341.8,0.70915]
[1725932374727,3.0,2342.0,2341.9,40.8]
[1725932375127,3.0,2342.0,2341.9,45.0696]
[1725932380042,0.3415,2342.2,2341.9,45.0696]
[1725932380239,3.3415,2342.2,2341.9,40.8]
[1725932381137,3.3415,2342.2,2341.9,41.14155]
[1725932381138,3.0,2342.2,2341.9,41.14155]
[1725932384440,3.0,2342.2,2342.0,0.34153]
[1725932385247,3.0,2342.2,2342.1,40.8]
[1725932389038,3.0,2342.2,2342.1,41.14152]
[1725932389347,3.0,2342.2,2342.1,40.8]
[1725932390459,3.0,2342.2,2342.1,41.14152]
[1725932390953,3.0,2342.2,2342.1,40.8]
[1725932392048,3.0,2342.2,2342.1,41.14152]
[1725932401555,3.0,2342.2,2342.1,40.8]
[1725932402961,7.2696,2342.2,2341.9,3.354]
[1725932403153,3.34151,2342.2,2341.9,3.69554]
[1725932403656,3.34151,2342.2,2342.0,40.8]
[1725932405159,3.0,2342.2,2342.0,40.8]
[1725932405854,3.3415,2342.2,2342.0,40.8]
[1725932406058,1.38,2342.1,2342.0,40.8]
[1725932406859,1.38,2342.1,2342.0,41.14153]
[1725932408273,1.38,2342.1,2342.0,40.8]
[1725932409954,1.38,2342.1,2342.0,41.14153]
[1725932410358,3.60347472,2342.1,2342.0,41.14153]
[1725932410562,1.38,2342.1,2342.0,41.14153]
[1725932410971,0.34149,2342.3,2342.1,0.34152]
[1725932410972,4.13952145,2342.3,2342.1,0.34152]
[1725932411176,4.13952145,2342.3,2342.1,0.73522]
[1725932411564,4.13952145,2342.3,2342.2,40.8]
[1725932413273,4.13952145,2342.3,2342.2,41.1415]
[1725932413570,4.13952145,2342.3,2342.2,41.1964]
[1725932415767,1.38,2342.3,2342.2,41.1964]
[1725932416174,3.60456094,2342.3,2342.2,42.30847999]
[1725932417460,3.94605094,2342.3,2342.2,42.30847999]
[1725932418268,3.94605094,2342.3,2342.2,44.02013664]
[1725932418466,3.94605094,2342.3,2342.2,44.02013911]
[1725932418671,3.94605094,2342.3,2342.2,42.64997999]
[1725932418873,3.94605094,2342.3,2342.2,41.5379]
[1725932419075,3.94605094,2342.3,2342.2,44.02896886]
[1725932419378,3.94605094,2342.3,2342.2,44.02897191]
[1725932419573,3.94605094,2342.3,2342.2,42.65876451]
[1725932420772,3.60456094,2342.3,2342.2,42.65876451]
[1725932420973,3.60456094,2342.3,2342.2,42.65883148]
[1725932421171,3.60456094,2342.3,2342.2,42.90815846]
[1725932421361,3.60456094,2342.3,2342.2,43.68758793]
[1725932421568,3.60456094,2342.3,2342.2,42.56665846]
[1725932421963,3.94605094,2342.3,2342.2,42.56665846]
[1725932422167,3.94605094,2342.3,2342.2,42.31732975]
[1725932422884,3.94605094,2342.3,2342.2,43.68761863]
[1725932423368,1.72149,2342.3,2342.2,41.1964]
[1725932424366,1.72149,2342.3,2342.2,41.5379]
[1725932424572,1.38,2342.3,2342.2,41.5379]
[1725932425479,1.38,2342.3,2342.2,41.1964]
[1725932428279,1.38,2342.3,2342.2,41.5379]
[1725932429184,4.15876352,2342.3,2342.2,41.1964]
[1725932429382,1.38,2342.3,2342.2,41.1964]
[1725932431373,3.60330363,2342.3,2342.2,42.56656676]
[1725932431584,3.94479363,2342.3,2342.2,1.37016676]
[1725932431775,3.94479363,2342.3,2342.2,2.49102849]
[1725932431975,1.72149,2342.3,2342.2,1.12086173]
[1725932432677,1.72149,2342.3,2342.1,41.92086173]
[1725932432877,3.60346304,2342.2,2342.0,5.02211999]
[1725932433074,3.60346304,2342.2,2342.1,2.49123197]
[1725932433778,3.60346304,2342.2,2342.1,1.37027919]
[1725932434191,3.60346304,2342.2,2342.1,3.76271918]
[1725932434192,1.38,2342.2,2342.1,3.76271918]
[1725932434689,1.38,2342.2,2342.1,3.42119918]
[1725932434888,1.38,2342.2,2342.1,3.40474852]
[1725932435189,1.38,2342.2,2342.1,3.74626852]
[1725932435387,1.38,2342.2,2342.1,3.40474852]
[1725932437276,1.38,2342.2,2342.1,3.74626852]
[1725932437477,3.60346304,2342.3,2342.1,3.74626852]
[1725932437674,2.22346304,2342.4,2342.2,4.02805155]
[1725932437878,2.22346304,2342.4,2342.3,1.74092853]
[1725932438077,2.22346304,2342.5,2342.3,3.40904852]
[1725932438276,2.22346304,2342.5,2342.4,1.51889657]
[1725932439280,3.60346304,2342.5,2342.4,1.51889657]
[1725932439981,1.38,2342.5,2342.4,3.21352991]
[1725932440205,1.38,2342.5,2342.4,1.51859711]
[1725932440798,3.60346304,2342.5,2342.4,1.51859711]
[1725932441183,3.60346304,2342.5,2342.4,0.3981]
[1725932441387,3.60346304,2342.5,2342.4,1.51859711]
[1725932441691,3.60346304,2342.5,2342.4,0.3981]
[1725932441989,3.60346304,2342.5,2342.4,1.51859711]
[1725932442192,1.38,2342.5,2342.4,1.51859711]
[1725932444490,1.38,2342.5,2342.4,0.3981]
[1725932444685,1.38,2342.5,2342.4,1.51859711]
[1725932445991,1.38,2342.5,2342.4,0.3981]
[1725932447078,4.1576648,2342.5,2342.4,0.3981]
[1725932449288,4.4991248,2342.5,2342.4,0.3981]
[1725932450388,1.72146,2342.5,2342.4,0.3981]
[1725932450594,4.15722346,2342.5,2342.4,0.3981]
[1725932450797,1.38,2342.5,2342.4,0.3981]
[1725932450988,1.72146,2342.5,2342.4,0.3981]
[1725932451188,4.49869628,2342.5,2342.4,0.3981]
[1725932451690,1.72146,2342.5,2342.4,0.3981]
[1725932451989,4.49864471,2342.5,2342.4,0.3981]
[1725932452190,1.72146,2342.5,2342.4,0.3981]
[1725932452797,1.38,2342.5,2342.4,0.3981]
[1725932453007,1.72146,2342.5,2342.4,0.3981]
[1725932454200,0.34146,2342.5,2342.4,4.6669]
[1725932454404,2.32068803,2343.0,2342.4,12.89105999]
[1725932454594,2.56306803,2343.1,2342.9,1.11953507]
[1725932454900,0.34138,2343.1,2343.0,0.7723]
[1725932455199,1.72138,2343.1,2343.0,0.7723]
[1725932456599,1.38,2343.1,2343.0,0.7723]
[1725932457099,2.56303803,2343.3,2343.0,1.11368]
[1725932457401,1.59624738,2343.3,2343.0,1.11368]
[1725932457592,1.93758738,2343.3,2343.0,1.11368]
[1725932457995,1.93758738,2343.3,2343.0,0.7723]
[1725932458303,1.93758738,2343.3,2343.1,0.34137]
[1725932458304,1.38,2343.3,2343.1,0.34137]
[1725932459901,1.38,2343.3,2343.0,1.11368]
[1725932460103,1.38,2343.3,2343.0,0.7723]
[1725932460401,1.38,2343.3,2343.1,0.34137]
[1725932461602,3.60168803,2343.3,2343.1,0.34137]
[1725932461804,3.60168803,2343.3,2343.0,0.7723]
[1725932461805,3.60168803,2343.2,2343.0,1.11367]
[1725932461999,2.22168803,2343.1,2343.0,1.11367]
[1725932462607,3.60168803,2343.2,2343.0,1.11367]
[1725932462900,3.60168803,2343.2,2342.4,3.57061497]
[1725932462901,6.48968803,2343.1,2342.4,3.69547]
[1725932463103,1.38,2342.5,2342.4,4.1189]
[1725932464305,3.0,2342.5,2342.4,4.1189]
[1725932465297,5.21632182,2342.5,2342.4,4.1189]
[1725932465595,3.0,2342.5,2342.4,4.1189]
[1725932465901,5.21632182,2342.5,2342.4,4.1189]
[1725932466905,5.21632182,2342.5,2342.4,4.46037]
[1725932467200,3.0,2342.5,2342.4,4.1189]
[1725932467400,5.21632182,2342.5,2342.4,4.1189]
[1725932467590,5.21632182,2342.5,2342.4,4.46037]
[1725932467793,3.0,2342.5,2342.4,4.46037]
[1725932468198,2.21632182,2342.6,2342.4,4.46037]
[1725932468396,2.21632182,2342.5,2342.4,4.46037]
[1725932468702,3.0,2342.9,2342.5,0.34146]
[1725932469005,3.3414,2342.9,2342.5,0.34146]
[1725932469404,3.0,2342.9,2342.5,0.34146]
[1725932469702,3.0,2342.9,2342.6,0.34143]
[1725932470001,3.0,2342.9,2342.7,0.3879]
[1725932470501,3.0,2342.9,2342.8,0.4011]
[1725932472202,3.3414,2342.9,2342.8,0.4011]
[1725932472603,3.0,2342.9,2342.8,0.4011]
[1725932474810,3.0,2342.9,2342.7,0.3879]
[1725932475496,3.0,2342.9,2342.5,0.74455]
[1725932475497,3.3414,2342.9,2342.5,0.74455]
[1725932475707,3.0,2342.7,2342.5,0.4031]
[1725932476095,3.0,2342.7,2342.6,0.34144]
[1725932476505,2.21632182,2342.8,2342.5,0.4031]
[1725932476900,2.21632182,2342.9,2342.8,0.34142]
[1725932477301,2.21632182,2343.0,2342.9,0.3414]
[1725932477597,2.21632182,2343.1,2343.0,0.34139]
[1725932477800,5.77711004,2343.3,2343.0,0.34139]
[1725932477801,2.21632182,2343.2,2343.0,0.34139]
[1725932481812,2.21632182,2343.2,2343.1,0.34137]
[1725932482707,2.21632182,2343.2,2342.9,0.75]
[1725932482908,2.21632182,2343.2,2343.0,0.34137]
[1725932483710,3.0,2343.3,2343.0,0.34137]
[1725932484104,3.0,2343.3,2343.1,0.34136]
[1725932485407,3.0,2343.3,2342.9,0.75]
[1725932488209,1.38,2343.2,2342.9,0.75]
[1725932490412,1.38,2343.0,2342.9,0.3685]
[1725932490608,1.38,2343.0,2342.9,0.3414]
[1725932491719,1.7682,2343.0,2342.9,0.3414]
[1725932497709,1.38,2343.0,2342.9,0.3414]
[1725932498410,1.38,2343.0,2342.8,0.42677]
[1725932498614,1.38,2343.0,2342.7,1.52203507]
[1725932498615,1.38,2342.8,2342.7,0.42679]
[1725932498819,3.59887219,2342.8,2342.7,0.42679]
[1725932500112,3.59887219,2342.8,2342.6,4.1089]
[1725932500315,2.21887219,2342.7,2342.6,4.53571]
[1725932500836,2.21887219,2342.7,2342.6,8.80451]
[1725932501720,2.21887219,2342.7,2342.6,4.53571]
[1725932506827,1.38,2342.8,2342.6,5.65524507]
[1725932508526,1.80677,2342.8,2342.6,5.65524507]
[1725932509228,1.80677,2342.8,2342.7,0.42679]
[1725932510526,1.80677,2342.8,2342.6,5.22843507]
[1725932510527,0.42679,2342.7,2342.6,4.47353507]
[1725932510720,9.02334219,2342.7,2342.6,1.72129273]
[1725932510921,15.02433354,2342.7,2342.6,0.90439116]
[1725932511122,12.80447,2342.7,2342.6,0.90439116]
[1725932511344,13.9573408,2342.7,2342.6,0.90439116]
[1725932511624,5.73749,2342.7,2342.6,0.90439116]
[1725932511828,13.9573408,2342.7,2342.6,0.90439116]
[1725932512025,7.9573408,2342.7,2342.6,0.90439116]
[1725932512229,13.9573408,2342.7,2342.6,0.90439116]
[1725932513529,15.0243208,2342.7,2342.6,0.90439116]
[1725932513719,12.80447,2342.7,2342.6,0.90439116]
[1725932514726,12.80447,2342.7,2342.6,1.80839116]
[1725932515127,6.80447,2342.7,2342.6,1.80839116]
[1725932515328,12.80447,2342.7,2342.6,1.80839116]
[1725932515527,15.57681665,2342.7,2342.6,1.80839116]
[1725932515728,15.83019661,2342.7,2342.6,1.80839116]
[1725932517836,8.76321661,2342.7,2342.6,1.80839116]
[1725932518032,9.44879661,2342.7,2342.6,1.80839116]
[1725932518732,9.05439661,2342.7,2342.6,1.80839116]
[1725932519935,7.98741661,2342.7,2342.6,1.80839116]
[1725932520139,9.05439661,2342.7,2342.6,1.80839116]
[1725932520938,6.28204996,2342.7,2342.6,1.80839116]
[1725932527942,12.28204996,2342.7,2342.6,1.80839116]
[1725932528952,14.49873104,2342.7,2342.6,1.80839116]
[1725932531247,14.23263104,2342.7,2342.6,1.80839116]
[1725932532755,6.01594996,2342.7,2342.6,1.80839116]
[1725932533146,8.22991352,2342.7,2342.6,1.44849802]
[1725932533339,2.56097,2342.5,2342.4,0.7469]
[1725932533554,6.15471288,2342.5,2342.4,0.7469]
[1725932533752,10.42351288,2342.5,2342.4,0.7469]
[1725932534050,8.20977,2342.5,2342.4,0.7469]
[1725932536352,11.52119574,2342.5,2342.4,0.7469]
[1725932540450,8.20977,2342.5,2342.4,0.7469]
[1725932540657,11.52119574,2342.5,2342.4,0.7469]
[1725932544058,13.73668017,2342.5,2342.4,0.7469]
[1725932544258,10.42525443,2342.5,2342.4,0.7469]
[1725932546657,10.42585213,2342.5,2342.4,0.7469]
[1725932547059,3.70998213,2342.5,2342.4,0.7469]
[1725932547358,5.08998213,2342.5,2342.4,0.7469]
[1725932547559,2.64291213,2342.5,2342.4,0.7469]
[1725932547759,1.80683,2342.5,2342.4,0.7469]
[1725932551861,7.1427,2342.5,2342.4,0.7469]
[1725932552760,10.45412574,2342.5,2342.4,0.7469]
[1725932554166,7.1427,2342.5,2342.4,0.7469]
[1725932554362,2.8739,2342.5,2342.4,0.7469]
[1725932554567,7.1427,2342.5,2342.4,0.7469]
[1725932554769,10.47074456,2342.5,2342.4,0.7469]
[1725932554969,7.1427,2342.5,2342.4,0.7469]
[1725932555656,11.00603003,2342.5,2342.4,0.7469]
[1725932559262,7.1427,2342.5,2342.4,0.7469]
[1725932559464,2.8739,2342.5,2342.4,0.7469]
[1725932559663,7.1427,2342.5,2342.4,0.7469]
[1725932559865,2.8739,2342.5,2342.4,0.7469]
[1725932560877,7.1427,2342.5,2342.4,0.7469]
[1725932561468,2.8739,2342.5,2342.4,0.7469]
[1725932562171,2.8739,2342.5,2341.6,1.11953507]
[1725932562172,1.06734,2341.9,2341.6,1.11953507]
[1725932562367,1.80697,2341.7,2341.6,0.3643]
[1725932563271,2.87441,2341.7,2341.6,0.3643]
[1725932563479,5.09349632,2341.7,2341.6,0.3643]
[1725932563979,2.87441,2341.7,2341.6,0.3643]
[1725932564168,5.34226852,2341.7,2341.6,0.3643]
[1725932564471,4.27482852,2341.7,2341.6,0.3643]
[1725932565167,2.05751952,2341.7,2341.6,0.3643]
[1725932565471,4.27482852,2341.7,2341.6,0.3643]
[1725932565767,2.05751952,2341.7,2341.6,0.3643]
[1725932565971,1.80697,2341.7,2341.6,0.3643]
[1725932566167,4.58082791,2341.7,2341.6,0.3643]
[1725932566975,1.80697,2341.7,2341.6,0.3643]
[1725932570078,4.02178951,2341.7,2341.6,0.3643]
[1725932570481,3.59481951,2341.7,2341.6,0.3643]
[1725932570673,1.80697,2341.7,2341.6,0.3643]
[1725932571684,4.02178951,2341.7,2341.6,0.3643]
[1725932574275,1.80697,2341.7,2341.6,0.3643]
[1725932575989,2.05135996,2341.7,2341.6,0.3643]
[1725932576692,1.38,2341.7,2341.6,0.3643]
[1725932576887,1.80697,2341.7,2341.6,0.3643]
[1725932577093,1.80697,2341.7,2341.6,0.79129]
[1725932577594,1.80697,2341.7,2341.6,0.3643]
[1725932580797,0.42701,2341.5,2341.4,0.3681]
[1725932581018,0.42701,2341.5,2341.2,0.3712]
[1725932581019,1.49466,2341.3,2341.2,0.3712]
[1725932581206,2.87466,2341.3,2341.2,0.3712]
[1725932582393,2.87466,2341.3,2340.9,1.22051]
[1725932582394,0.42709,2341.1,2340.9,0.7934]
[1725932582595,1.38,2341.0,2340.9,1.22052]
[1725932582794,1.38,2341.0,2340.9,0.7934]
[1725932583903,1.38,2341.0,2340.9,1.22052]
[1725932584394,1.38,2341.0,2340.9,5.49252]
[1725932584995,1.38,2341.0,2340.9,1.22052]
[1725932585197,1.8071,2341.0,2340.9,0.7934]
[1725932585592,1.8071,2341.0,2340.9,1.1902]
[1725932586701,1.38,2341.0,2340.9,1.61732]
[1725932586901,1.8071,2341.0,2340.9,1.1902]
[1725932587195,1.8071,2341.0,2340.9,0.7934]
[1725932589305,0.42712,2340.9,2340.6,0.3968]
[1725932589503,0.42714,2340.8,2340.7,0.751]
[1725932590300,0.42714,2340.8,2340.5,0.83108]
[1725932590507,0.42714,2340.8,2340.5,1.58208]
[1725932591605,1.38,2340.6,2340.5,1.1549]
[1725932591911,1.38,2340.6,2340.5,1.58209]
[1725932592204,1.38,2340.6,2340.5,1.1549]
[1725932593309,1.38,2340.6,2340.5,1.58209]
[1725932593610,1.68836191,2341.1,2340.6,0.42716]
[1725932593804,1.38,2340.8,2340.6,0.42716]
[1725932594200,1.80714,2340.8,2340.6,0.42716]
[1725932595822,0.42716,2340.7,2340.5,1.58208]
[1725932596009,1.38,2340.8,2340.5,1.58208]
[1725932596010,1.38,2340.6,2340.5,1.58208]
[1725932596399,1.38,2340.6,2340.5,5.85488]
[1725932597512,1.80717,2340.6,2340.5,1.1549]
[1725932598808,6.72074,2340.6,2340.0,0.2]
[1725932599014,2.87543,2340.1,2340.0,0.2]
[1725932599307,1.38,2340.1,2339.1,1.11953507]
[1725932599516,1.38,2340.1,2338.8,0.4015]
[1725932599517,1.38,2339.3,2338.8,0.4015]
[1725932599702,1.38,2339.1,2338.8,0.4015]
[1725932600409,1.38,2339.1,2338.8,0.82899]
[1725932600609,1.38,2338.9,2338.8,0.4015]
[1725932601016,1.80748,2338.9,2338.8,0.4015]
[1725932601204,0.4275,2338.8,2338.7,0.403]
[1725932601405,0.4275,2338.8,2338.3,0.7575]
[1725932601406,1.38,2338.8,2338.3,0.7575]
[1725932601605,1.38,2338.5,2338.2,0.3885]
[1725932601812,1.06874,2338.9,2338.2,0.3885]
[1725932601813,1.38,2338.3,2338.2,0.3885]
[1725932602212,1.38,2338.3,2337.5,2.49953507]
[1725932602213,4.2776,2338.2,2337.4,0.09758507]
[1725932602406,3.0,2337.5,2336.7,1.11319729]
[1725932602611,1.70646,2338.2,2336.3,1.85118]
[1725932602612,0.099,2337.7,2337.0,3.0]
[1725932602803,3.099,2338.0,2337.2,3.0]
[1725932603002,3.0,2337.8,2337.6,0.42772]
[1725932603207,0.42772,2337.7,2336.8,40.8]
[1725932603410,3.0,2336.9,2336.7,0.42788]
[1725932603610,3.0,2336.9,2336.6,0.7813]
[1725932603807,3.0,2337.2,2336.7,4.2792]
[1725932604007,3.0,2337.6,2336.6,3.7813]
[1725932604213,3.0,2337.6,2337.2,0.42778]
[1725932604512,3.0,2337.6,2336.6,3.7813]
[1725932604707,3.0,2337.6,2337.2,0.42778]
[1725932605014,3.0,2337.6,2336.7,1.06972]
[1725932605411,3.0,2337.6,2337.3,0.42776]
[1725932605710,3.0,2337.6,2337.4,0.42774]
[1725932606108,3.0,2337.6,2337.4,0.42775]
[1725932606308,3.0,2337.6,2337.5,0.42774]
[1725932606517,3.0,2337.8,2336.8,3.0]
[1725932606704,3.0,2337.8,2337.5,0.42774]
[1725932606908,3.0,2337.8,2337.0,3.0]
[1725932607116,3.0,2337.8,2337.5,0.42772]
[1725932607518,0.4709,2338.3,2337.0,7.082]
[1725932607519,3.0,2338.0,2337.0,7.082]
[1725932607709,3.0,2338.2,2337.9,0.42765]
[1725932608019,3.0,2338.6,2338.1,0.42763]
[1725932608203,3.0,2338.6,2337.7,3.0]
[1725932608407,3.42754,2338.6,2338.2,0.42761]
[1725932608804,3.0,2338.6,2338.4,0.42757]
[1725932609015,3.0,2338.6,2338.5,0.42756]
[1725932609222,3.0,2338.6,2338.4,0.42756]
[1725932609417,0.3658,2339.2,2337.8,4.06922]
[1725932609418,3.0,2338.8,2337.9,1.06917]
[1725932609610,3.0,2338.8,2338.0,43.8]
[1725932609807,3.0,2338.8,2338.7,0.42752]
[1725932610005,0.3818,2339.2,2338.2,3.0]
[1725932610006,3.0,2339.0,2338.2,3.0]
[1725932610215,3.0,2339.0,2338.8,0.4275]
[1725932610416,3.0,2339.0,2338.8,0.42748]
[1725932610623,3.0,2339.0,2338.9,0.42748]
[1725932611229,3.0,2339.2,2338.4,3.0]